bitfinex/quotes_ETHUSD_20250517
["timestamp","ask_amount","ask_price","bid_price","bid_amount"]
[1747512570817,4.04759977,2470.6,2470.4,7.876]
[1747512571119,7.922,2470.7,2470.2,0.7764]
[1747512571303,4.04801696,2470.4,2470.2,0.7764]
[1747512571615,4.04809132,2470.3,2470.1,7.876]
[1747512571812,4.047987,2470.4,2470.1,7.876]
[1747512572013,4.04809999,2470.3,2470.1,7.876]
[1747512572220,4.04800971,2470.4,2470.1,8.55009635]
[1747512573218,7.926,2470.6,2470.4,0.7764]
[1747512573695,11.9736792,2470.6,2470.4,0.7764]
[1747512574896,7.926,2470.6,2470.4,0.7764]
[1747512575419,4.48631931,2471.3,2470.4,0.7764]
[1747512575620,4.04693143,2471.1,2470.6,4.047452]
[1747512576305,4.04694455,2471.0,2470.4,0.7764]
[1747512576508,4.04720414,2470.9,2470.4,4.82418943]
[1747512576712,4.04652429,2471.3,2470.8,4.04719347]
[1747512576911,7.922,2471.4,2470.7,11.97535186]
[1747512577219,4.04645328,2471.3,2470.7,9.60793516]
[1747512577423,4.04678613,2471.1,2470.7,9.60793516]
[1747512578123,4.04675377,2471.2,2470.7,13.65533848]
[1747512578303,11.96837927,2471.4,2470.5,0.7764]
[1747512578488,4.0470284,2471.0,2470.5,12.751057]
[1747512578688,4.04677971,2471.2,2470.6,4.04744717]
[1747512578912,4.04680686,2471.1,2470.6,4.43290125]
[1747512579113,4.04697431,2471.0,2470.6,6.15130196]
[1747512579319,4.04697431,2471.0,2470.6,2.10385479]
[1747512579903,4.04697431,2471.0,2470.6,1.71840071]
[1747512580624,4.04718748,2470.9,2470.6,1.71840071]
[1747512580828,4.047876,2470.5,2470.2,0.7539]
[1747512581031,4.04769289,2470.6,2470.2,4.80214752]
[1747512581330,0.03426479,2470.5,2470.0,1.39695051]
[1747512581637,4.04833274,2470.2,2470.0,0.7539]
[1747512581837,4.04814817,2470.3,2470.0,0.7539]
[1747512582934,4.48759751,2470.5,2470.0,0.7539]
[1747512583144,8.3558,2470.8,2470.1,4.04841909]
[1747512583339,11.95843619,2470.7,2470.2,4.04809356]
[1747512583631,0.4398,2471.0,2470.3,0.04047951]
[1747512583832,4.04714901,2470.9,2470.4,0.7539]
[1747512584124,7.916,2471.0,2470.4,0.7539]
[1747512584290,4.04721337,2470.9,2470.4,12.72875989]
[1747512584491,7.916,2471.0,2470.4,10.35858183]
[1747512584690,0.03426479,2470.9,2470.4,8.6809]
[1747512584925,4.04743214,2470.8,2470.4,8.6809]
[1747512585628,4.04743214,2470.8,2470.4,12.72882111]
[1747512585928,4.04743214,2470.8,2470.5,0.38628093]
[1747512586626,8.4398,2471.3,2470.5,0.38628093]
[1747512586828,4.04695219,2471.0,2470.5,4.43397616]
[1747512587696,4.04695219,2471.0,2470.6,0.38628093]
[1747512587896,4.04714281,2470.9,2470.6,0.38628093]
[1747512588504,4.04739442,2470.8,2470.6,0.38628093]
[1747512588707,4.04743594,2470.7,2470.6,0.38628093]
[1747512588905,4.04759977,2470.6,2470.5,0.38628093]
[1747512590133,4.08186456,2470.6,2470.5,0.38628093]
[1747512590336,4.04759977,2470.6,2470.5,0.38628093]
[1747512590809,4.04809132,2470.3,2470.1,7.927]
[1747512591011,4.04799324,2470.4,2470.1,7.927]
[1747512591212,4.04805271,2470.4,2470.1,7.927]
[1747512591411,4.0481315,2470.3,2470.1,7.927]
[1747512592238,4.04805271,2470.4,2470.1,7.927]
[1747512592605,4.04810391,2470.3,2470.1,7.927]
[1747512592931,4.04801617,2470.4,2470.1,7.927]
[1747512593098,4.04813135,2470.3,2470.1,7.927]
[1747512593498,4.0480193,2470.4,2470.1,7.927]
[1747512594738,4.0480193,2470.4,2470.2,0.38708376]
[1747512594943,4.04809132,2470.3,2470.2,0.38708376]
[1747512596447,0.4398,2470.4,2469.8,7.927]
[1747512596599,4.04848844,2470.1,2469.8,7.927]
[1747512596805,4.48777178,2470.4,2469.8,11.00176237]
[1747512597011,4.48777178,2470.4,2469.7,0.48187453]
[1747512597012,0.4398,2470.4,2469.7,0.48187453]
[1747512597234,4.04891084,2469.8,2469.7,0.48187453]
[1747512597440,11.99417563,2469.8,2469.7,0.48187453]
[1747512597626,11.95991084,2469.8,2469.7,0.48187453]
[1747512598326,21.60476006,2469.8,2469.7,0.48187453]
[1747512598526,22.04456006,2469.8,2469.7,0.48187453]
[1747512599447,4.04981328,2469.3,2469.0,0.38704803]
[1747512599620,4.04964479,2469.4,2469.0,0.38704803]
[1747512599826,4.04964479,2469.4,2469.0,1.31609598]
[1747512600448,0.4398,2469.8,2469.0,1.31609598]
[1747512600658,4.04868933,2470.0,2469.1,0.04049348]
[1747512600837,4.04923874,2469.6,2469.5,0.7938]
[1747512601011,4.04875111,2469.9,2469.2,8.7218]
[1747512601216,4.04934447,2469.6,2469.3,1.31589057]
[1747512601525,4.04949109,2469.5,2469.3,1.31589057]
[1747512601849,4.04949713,2469.5,2469.3,1.31589057]
[1747512602248,4.04956669,2469.4,2469.3,1.31589057]
[1747512602415,4.04956669,2469.4,2469.2,0.7938]
[1747512602817,0.74809112,2470.1,2469.2,0.7938]
[1747512603058,4.04898966,2469.8,2469.3,4.04964474]
[1747512603326,4.04881711,2469.9,2469.4,4.04950654]
[1747512603529,4.04881711,2469.9,2469.5,0.80991513]
[1747512604043,4.04881711,2469.9,2469.4,4.04950654]
[1747512604258,4.04891185,2469.8,2469.4,4.04950654]
[1747512604553,0.03426479,2469.9,2469.2,0.7938]
[1747512604738,4.04891084,2469.8,2469.2,8.7268]
[1747512604941,4.04894313,2469.8,2469.3,4.92233395]
[1747512605337,4.04924937,2469.6,2469.3,0.87268]
[1747512605538,4.04916032,2469.7,2469.3,0.87268]
[1747512605756,4.04894313,2469.8,2469.3,4.92233142]
[1747512606157,7.924,2469.9,2469.4,2.56369618]
[1747512606350,11.97282421,2469.9,2469.4,2.56369618]
[1747512606653,4.04905241,2469.8,2469.4,0.7938]
[1747512607375,4.04907538,2469.7,2469.4,0.7938]
[1747512607523,4.04923625,2469.7,2469.4,0.7938]
[1747512608243,4.0492967,2469.6,2469.4,0.7938]
[1747512608433,4.04940271,2469.5,2469.4,0.7938]
[1747512608836,4.04940271,2469.5,2469.2,8.7303]
[1747512609036,4.04940271,2469.5,2469.2,10.10123992]
[1747512609433,4.04913525,2469.7,2469.2,10.10123992]
[1747512609434,4.04973069,2469.3,2469.2,0.7973]
[1747512609636,0.4398,2469.8,2469.0,8.7303]
[1747512609866,4.04946973,2469.5,2469.0,12.78043169]
[1747512610160,4.04930156,2469.6,2469.1,4.049965]
[1747512610362,8.4398,2470.1,2469.3,0.7973]
[1747512610538,4.04898173,2469.8,2469.3,4.84694218]
[1747512611934,4.04835141,2470.2,2469.7,4.04900858]
[1747512612133,4.04835141,2470.2,2469.6,0.7973]
[1747512612134,4.04847631,2470.1,2469.6,0.7973]
[1747512612336,4.04847631,2470.1,2469.7,1.27796317]
[1747512612541,4.04847631,2470.1,2469.6,4.84646056]
[1747512613960,11.9591207,2470.3,2469.8,4.04882745]
[1747512614965,11.95919231,2470.3,2469.7,4.04901614]
[1747512615149,4.04844513,2470.1,2469.6,4.84640972]
[1747512615467,11.95914252,2470.3,2469.7,5.73194892]
[1747512615763,4.04842105,2470.1,2469.7,5.73194892]
[1747512616626,7.904,2470.2,2469.9,4.04860542]
[1747512616833,4.04842507,2470.1,2470.0,0.38659797]
[1747512617082,11.95232806,2470.2,2470.0,0.38659797]
[1747512617727,4.04841909,2470.1,2470.0,0.38659797]
[1747512617930,4.08268388,2470.1,2470.0,0.38659797]
[1747512618159,6.08828669,2470.1,2470.0,0.38659797]
[1747512618663,4.04922541,2469.7,2469.4,0.48300386]
[1747512619048,12.42121909,2470.1,2469.4,0.48300386]
[1747512619049,4.04858299,2470.0,2469.4,0.48300386]
[1747512619256,4.04940271,2469.5,2469.4,0.48300386]
[1747512619762,4.0836675,2469.5,2469.4,0.48300386]
[1747512619967,14.16791517,2469.5,2469.4,0.48300386]
[1747512620143,14.13365038,2469.5,2469.4,0.48300386]
[1747512621080,24.73365038,2469.5,2469.4,0.48300386]
[1747512622661,0.4398,2469.1,2468.0,0.8313]
[1747512622859,4.05118484,2468.5,2468.1,0.53663243]
[1747512623087,4.70025308,2469.3,2468.1,0.53663243]
[1747512623088,0.4398,2469.3,2468.2,0.8313]
[1747512623262,7.921,2469.3,2468.8,0.8313]
[1747512623465,4.05007499,2469.1,2468.8,0.8313]
[1747512624430,0.03426479,2469.2,2467.9,6.54300386]
[1747512624629,0.03426479,2469.2,2468.3,0.7697]
[1747512624630,4.05071017,2468.8,2468.3,0.7697]
[1747512625064,4.05071017,2468.8,2468.3,4.82101887]
[1747512625254,4.05047171,2468.9,2468.4,0.38660132]
[1747512625454,4.0847365,2468.9,2468.4,0.38660132]
[1747512625768,4.0504568,2468.9,2468.4,4.43780665]
[1747512625962,4.08467136,2468.9,2468.4,0.38660132]
[1747512626264,4.05065118,2468.8,2468.4,1.1061007]
[1747512626832,4.05065118,2468.8,2468.5,0.38660132]
[1747512629384,4.05087904,2468.6,2468.5,0.38660132]
[1747512629887,4.05087904,2468.6,2468.4,0.38660132]
[1747512630738,7.902,2468.7,2468.4,0.38660132]
[1747512630939,7.902,2468.7,2468.4,5.34681655]
[1747512631383,11.95278845,2468.7,2468.4,0.90913013]
[1747512631583,11.95278845,2468.7,2468.3,0.7697]
[1747512631971,11.95278845,2468.7,2468.3,4.82106179]
[1747512632587,7.902,2468.7,2468.3,4.82106179]
[1747512632898,11.95276472,2468.7,2468.3,0.7697]
[1747512633557,4.05091744,2468.6,2468.3,0.7697]
[1747512633884,11.95280362,2468.7,2468.3,0.7697]
[1747512634424,4.05087904,2468.6,2468.3,0.7697]
[1747512634705,4.05119557,2468.5,2468.3,0.7697]
[1747512634874,4.05115031,2468.5,2468.2,7.935]
[1747512635074,4.0509595,2468.6,2468.2,7.935]
[1747512635275,4.0510839,2468.5,2468.2,7.935]
[1747512635772,4.05122128,2468.4,2468.2,7.935]
[1747512636397,4.05153553,2468.2,2468.0,0.48300386]
[1747512636560,4.05147005,2468.3,2468.0,0.48300386]
[1747512637203,11.95271642,2468.7,2468.0,0.48300386]
[1747512637204,4.05132926,2468.4,2468.0,0.48300386]
[1747512637508,4.05144066,2468.3,2467.9,0.7845]
[1747512638122,4.05129057,2468.4,2467.9,4.83652097]
[1747512638796,4.05129057,2468.4,2468.0,4.05184218]
[1747512639196,4.05129057,2468.4,2467.9,4.83644989]
[1747512639497,4.05129057,2468.4,2468.0,4.0518471]
[1747512640121,4.05114741,2468.5,2468.0,5.66457517]
[1747512640413,7.872,2468.7,2468.3,0.7813]
[1747512640698,4.05063041,2468.8,2468.3,0.7813]
[1747512640866,11.9227358,2468.7,2468.3,0.7813]
[1747512641194,4.05091851,2468.6,2468.3,0.7813]
[1747512641790,11.92082702,2468.7,2468.3,0.7813]
[1747512643100,4.0509042,2468.6,2468.3,0.7813]
[1747512643418,4.0509042,2468.6,2468.0,2.3941262]
[1747512643419,4.05120725,2468.4,2468.0,2.3941262]
[1747512643721,4.05145495,2468.3,2468.0,2.3941262]
[1747512644070,0.4398,2468.6,2468.1,0.38617353]
[1747512644071,4.05153553,2468.2,2468.1,0.38617353]
[1747512645007,11.92253553,2468.2,2468.1,0.38617353]
[1747512645195,4.05193671,2468.0,2467.7,0.48300386]
[1747512645368,7.871,2468.2,2467.7,0.48300386]
[1747512645572,11.92266119,2468.2,2467.7,4.53533546]
[1747512645796,4.05172051,2468.1,2467.7,4.53533546]
[1747512646203,4.05172051,2468.1,2467.7,0.48300386]
[1747512646599,4.05172051,2468.1,2467.6,4.85123255]
[1747512647005,4.0513019,2468.4,2467.9,4.05191453]
[1747512647171,14.10056667,2468.8,2468.3,4.05126177]
[1747512647172,14.1005717,2468.8,2468.3,4.05126177]
[1747512647371,4.05074855,2468.7,2468.3,4.05126177]
[1747512647708,0.4398,2469.4,2468.7,0.7988]
[1747512647883,7.89,2469.4,2468.9,4.05024158]
[1747512648207,7.889,2469.5,2469.0,0.7988]
[1747512648405,10.4898,2469.9,2469.3,4.04965411]
[1747512648611,7.897,2469.8,2469.1,7.89]
[1747512648792,4.04924287,2469.6,2469.1,11.93998116]
[1747512649217,4.04924287,2469.6,2469.2,0.38710388]
[1747512649796,7.889,2469.9,2469.3,0.8236]
[1747512649992,4.04899422,2469.8,2469.3,4.87318791]
[1747512650430,4.04899422,2469.8,2469.4,0.38710388]
[1747512650714,11.93782389,2469.9,2469.4,0.38710388]
[1747512650913,11.93782389,2469.9,2469.4,1.48988129]
[1747512651214,4.0489847,2469.8,2469.4,1.48988129]
[1747512651412,4.04940271,2469.5,2469.4,0.38710388]
[1747512651586,4.04923504,2469.7,2469.4,0.38710388]
[1747512651928,4.04940271,2469.5,2469.4,0.38710388]
[1747512652134,4.89353371,2469.5,2469.4,0.38710388]
[1747512652714,12.89353371,2469.5,2469.4,0.38710388]
[1747512653017,12.85926892,2469.5,2469.4,0.38710388]
[1747512654179,13.29906892,2469.5,2469.4,0.38710388]
[1747512654374,8.0,2469.4,2468.4,1.30660386]
[1747512654614,4.05056196,2468.8,2468.4,5.38233087]
[1747512655219,7.906,2469.2,2468.4,9.43347459]
[1747512655517,4.0501756,2469.1,2468.5,4.05104314]
[1747512655718,4.0501756,2469.1,2468.6,4.05081244]
[1747512656086,7.906,2469.2,2468.8,4.05054574]
[1747512656292,11.95597834,2469.2,2468.9,1.63372596]
[1747512656688,7.906,2469.2,2468.9,1.63372596]
[1747512657075,11.9558961,2469.2,2468.9,1.63372596]
[1747512657318,4.05006892,2469.1,2468.9,0.8236]
[1747512658018,4.05016694,2469.1,2468.9,0.8236]
[1747512658318,7.906,2469.2,2468.9,0.8236]
[1747512658814,11.95597189,2469.2,2468.9,0.8236]
[1747512659988,4.05010736,2469.1,2468.9,0.8236]
[1747512660681,4.05022276,2469.0,2468.6,0.8236]
[1747512660886,4.05048148,2468.9,2468.6,1.36183309]
[1747512661383,4.05028319,2469.0,2468.7,0.38659617]
[1747512661818,4.05045864,2468.9,2468.7,0.38659617]
[1747512662322,4.05055087,2468.8,2468.7,0.38659617]
[1747512662824,4.08481566,2468.8,2468.7,0.38659617]
[1747512662984,4.8640783,2468.8,2468.7,0.38659617]
[1747512663190,4.05073202,2468.7,2468.3,0.8236]
[1747512663494,11.93089249,2468.6,2468.3,0.8236]
[1747512664700,4.05132466,2468.4,2468.0,1.30660386]
[1747512665004,4.05132466,2468.4,2468.0,5.35845577]
[1747512665202,4.05132466,2468.4,2468.1,1.32334558]
[1747512665408,4.05132466,2468.4,2468.0,1.30660386]
[1747512665791,4.05132466,2468.4,2468.0,5.35843264]
[1747512666128,4.05132466,2468.4,2468.0,1.30660386]
[1747512666447,4.05169968,2468.1,2468.0,0.48300386]
[1747512666597,12.83566965,2468.1,2468.0,0.48300386]
[1747512666931,12.83566965,2468.1,2467.5,0.38672983]
[1747512666932,4.05252066,2467.6,2467.5,0.38672983]
[1747512667095,12.42932066,2467.6,2467.5,0.38672983]
[1747512667526,20.42932066,2467.6,2467.5,0.38672983]
[1747512668110,4.05317769,2467.2,2467.1,0.48300386]
[1747512669530,4.05352011,2467.0,2466.6,0.38622533]
[1747512669722,11.98752011,2467.0,2466.6,0.91265106]
[1747512670534,4.49245079,2467.6,2466.6,0.91265106]
[1747512670695,4.05301976,2467.3,2466.8,4.05373353]
[1747512670897,0.03426479,2467.3,2466.6,0.38622533]
[1747512671106,4.05399927,2466.7,2466.6,0.38622533]
[1747512671307,11.98499927,2466.7,2466.3,0.48300386]
[1747512671833,4.05416852,2466.6,2466.3,0.48300386]
[1747512672342,4.05418618,2466.6,2466.3,0.48300386]
[1747512672527,11.98506861,2466.7,2466.3,0.48300386]
[1747512673047,11.98506861,2466.7,2466.2,4.8781143]
[1747512673343,4.05418051,2466.6,2466.2,4.2537155]
[1747512674030,7.919,2466.6,2466.3,4.05457456]
[1747512674943,7.919,2466.6,2466.2,8.30846266]
[1747512675118,4.05457567,2466.4,2466.2,0.8233]
[1747512675312,4.05439815,2466.5,2466.2,0.8233]
[1747512675645,4.05450384,2466.4,2465.9,4.87393063]
[1747512676040,4.05521314,2466.0,2465.5,0.8187]
[1747512676361,4.05473798,2466.3,2465.8,4.05535825]
[1747512676520,7.918,2466.3,2466.0,4.05505313]
[1747512676843,7.918,2466.3,2466.0,4.05507746]
[1747512677303,7.918,2466.3,2466.1,4.05487037]
[1747512677508,7.918,2466.3,2466.2,4.05482118]
[1747512677731,7.918,2466.5,2466.2,4.05473401]
[1747512678006,0.4398,2466.8,2466.3,4.05455102]
[1747512678220,7.917,2466.7,2466.6,4.05401478]
[1747512678434,4.05342105,2467.1,2466.6,4.05401478]
[1747512678634,7.922,2467.0,2466.7,4.05383606]
[1747512678947,7.922,2467.0,2466.3,4.87330258]
[1747512678948,11.97560967,2467.0,2466.5,4.0543086]
[1747512679461,4.05399093,2466.8,2466.3,0.8187]
[1747512679613,4.05399093,2466.8,2466.4,4.05449179]
[1747512679809,11.97557463,2467.0,2466.4,4.05449179]
[1747512679810,4.05374732,2466.9,2466.4,4.05449179]
[1747512680037,8.30383509,2467.4,2466.3,0.8187]
[1747512680206,4.05335252,2467.1,2466.6,4.05408064]
[1747512681249,8.47406479,2467.0,2465.7,0.813]
[1747512681550,8.47406479,2467.0,2466.1,4.05482708]
[1747512681551,12.05386902,2466.8,2466.1,4.05482708]
[1747512681707,4.0541715,2466.6,2466.1,4.05482708]
[1747512682530,4.05449861,2466.4,2465.9,4.86815726]
[1747512682733,4.05440212,2466.5,2466.0,4.05510172]
[1747512683264,4.0543472,2466.5,2466.0,4.05515004]
[1747512685171,4.0543472,2466.5,2466.0,4.05506355]
[1747512685974,4.05323209,2467.2,2466.1,0.55]
[1747512686274,12.02425207,2467.2,2466.7,4.81532799]
[1747512686574,7.971,2467.2,2466.7,0.7614]
[1747512686775,0.4398,2467.6,2467.1,4.05322023]
[1747512686776,7.975,2467.4,2467.1,4.05322023]
[1747512687272,4.0527072,2467.5,2467.1,4.05322023]
[1747512687488,7.978,2467.9,2467.2,0.80193179]
[1747512687766,4.05242787,2467.7,2467.2,4.81450167]
[1747512688672,4.05254765,2467.6,2467.2,0.7614]
[1747512688863,4.05226812,2467.8,2467.3,4.05291806]
[1747512689347,4.05242795,2467.7,2467.2,4.81455386]
[1747512689544,4.05226812,2467.8,2467.2,4.81455386]
[1747512689545,4.05227528,2467.8,2467.3,4.05299965]
[1747512689736,0.4398,2468.2,2467.2,2.51747082]
[1747512689737,7.979,2467.7,2467.5,4.05254324]
[1747512689940,7.881,2468.0,2467.5,4.05254324]
[1747512689941,4.05188667,2468.0,2467.5,4.05254324]
[1747512690140,12.03102841,2467.9,2467.5,4.05254324]
[1747512691084,0.4398,2468.2,2467.2,2.51747082]
[1747512691261,15.858,2468.4,2467.9,4.0519088]
[1747512691582,15.858,2468.4,2467.7,4.05219708]
[1747512691583,4.05147956,2468.3,2467.7,4.05219708]
[1747512691763,4.05147956,2468.3,2467.8,4.05208868]
[1747512692365,19.90926391,2468.4,2467.9,4.05198139]
[1747512692566,4.05142331,2468.3,2467.8,4.05213407]
[1747512693787,4.05178139,2468.1,2467.6,12.76283788]
[1747512693983,4.05178139,2468.1,2467.6,14.44439525]
[1747512694189,4.05178139,2468.1,2467.6,6.56339525]
[1747512694384,4.05212076,2467.9,2467.4,4.05284406]
[1747512694588,7.966,2467.9,2467.5,4.05265793]
[1747512696679,7.957,2468.0,2467.8,4.05211524]
[1747512697010,4.49038085,2468.8,2468.2,4.05146109]
[1747512697292,7.958,2468.4,2468.3,4.05137138]
[1747512697864,7.958,2468.4,2468.2,4.05146615]
[1747512698178,4.05144355,2468.3,2468.0,0.7854]
[1747512698379,12.00929413,2468.4,2468.0,0.7854]
[1747512698891,4.05138734,2468.3,2468.0,0.7854]
[1747512699185,4.05144524,2468.3,2468.0,0.7854]
[1747512699984,12.00925427,2468.4,2468.0,0.7854]
[1747512700151,12.00924244,2468.4,2468.0,4.83718358]
[1747512700346,12.00924244,2468.4,2468.0,0.7854]
[1747512701090,4.05140524,2468.3,2468.0,0.7854]
[1747512701258,4.05181993,2468.1,2467.7,1.27060386]
[1747512701455,4.05188962,2468.0,2467.7,1.27060386]
[1747512701792,4.05219223,2467.8,2467.4,8.7426]
[1747512702288,4.05219223,2467.8,2467.4,12.7954335]
[1747512702486,4.05219223,2467.8,2467.4,4.8404335]
[1747512702694,4.05235644,2467.7,2467.4,0.7876]
[1747512702891,4.08662123,2467.7,2467.4,0.7876]
[1747512705215,4.05222118,2467.8,2467.4,0.7876]
[1747512705356,12.00011431,2467.9,2467.4,0.7876]
[1747512705556,4.05220327,2467.8,2467.4,0.7876]
[1747512705872,4.0523574,2467.7,2467.4,0.7876]
[1747512706605,7.948,2467.9,2467.4,0.7876]
[1747512706815,7.948,2467.9,2467.1,18.2649]
[1747512706816,4.0528644,2467.4,2467.1,18.2649]
[1747512707099,4.0528644,2467.4,2466.9,4.05361999]
[1747512707100,4.05293407,2467.4,2466.9,4.05361999]
[1747512707316,7.97026479,2467.4,2466.9,0.7569]
[1747512707591,0.4398,2467.2,2466.6,1.23990386]
[1747512707754,0.03426479,2467.1,2466.6,0.48300386]
[1747512707954,4.05382952,2466.9,2466.6,0.48300386]
[1747512708200,7.944,2466.8,2466.6,0.48300386]
[1747512708687,11.99785186,2466.8,2466.6,0.48300386]
[1747512709256,7.944,2466.8,2466.6,0.48300386]
[1747512710463,11.99793343,2466.8,2466.6,0.48300386]
[1747512710796,7.944,2466.8,2466.3,4.81144957]
[1747512710957,11.99790753,2466.8,2466.3,6.49356124]
[1747512711161,11.99790753,2466.8,2466.4,4.05448825]
[1747512711395,11.99790753,2466.8,2466.3,6.49358563]
[1747512711892,0.03426479,2466.7,2466.3,2.43901167]
[1747512712202,4.05421083,2466.6,2466.3,2.43901167]
[1747512712491,11.99789241,2466.8,2466.3,0.7569]
[1747512712492,4.05433684,2466.5,2466.3,0.7569]
[1747512712695,4.05425785,2466.6,2466.3,0.7569]
[1747512713061,4.0543489,2466.5,2466.3,0.7569]
[1747512713463,0.79702648,2467.3,2466.3,0.7569]
[1747512713660,4.05366122,2467.0,2466.4,4.05433876]
[1747512713890,4.05366122,2467.0,2466.5,4.054255]
[1747512714392,4.05368259,2466.9,2466.5,4.054255]
[1747512715000,4.05368259,2466.9,2466.4,4.53556709]
[1747512715415,4.05368259,2466.9,2466.5,4.05432224]
[1747512715710,7.924,2467.0,2466.6,4.05409694]
[1747512716001,7.924,2467.0,2466.7,4.05386018]
[1747512716214,7.922,2467.2,2466.8,4.88463387]
[1747512716362,4.05336176,2467.1,2466.8,0.8308]
[1747512716569,4.05344231,2467.1,2466.8,0.8308]
[1747512717471,11.97525938,2467.2,2466.8,4.88462279]
[1747512717665,4.05375538,2466.9,2466.5,0.93469673]
[1747512718011,4.05341366,2467.1,2466.6,4.05407908]
[1747512718506,11.97524344,2467.2,2466.6,4.05407908]
[1747512719310,4.05351367,2467.0,2466.6,4.05407908]
[1747512719478,4.05341546,2467.1,2466.6,4.95840033]
[1747512720510,4.05386577,2466.8,2466.3,1.31380386]
[1747512720724,0.03426479,2466.7,2466.3,9.27080386]
[1747512721009,4.0539139,2466.8,2466.3,4.88538063]
[1747512721207,7.971,2466.7,2466.3,4.88538063]
[1747512721402,7.971,2466.7,2466.5,4.05425311]
[1747512722104,7.971,2466.7,2466.4,4.05433992]
[1747512722411,7.971,2466.7,2466.3,4.88537596]
[1747512723375,7.967,2466.9,2466.8,4.05382386]
[1747512723576,7.967,2467.0,2466.8,4.88462386]
[1747512723773,0.4398,2467.7,2466.8,0.8308]
[1747512723982,7.971,2467.7,2467.3,4.84029494]
[1747512724177,1.68375086,2467.9,2467.4,4.05277584]
[1747512724401,12.02321599,2467.8,2467.3,4.84024082]
[1747512724611,7.971,2467.8,2467.3,4.84024082]
[1747512724816,7.971,2467.8,2467.4,4.05276746]
[1747512725126,12.02321508,2467.8,2467.3,4.84021894]
[1747512725820,0.03426479,2467.7,2467.3,0.7873]
[1747512726114,4.05243224,2467.7,2467.3,0.7873]
[1747512727588,0.4398,2468.2,2467.3,1.27133972]
[1747512727891,4.051938,2468.0,2467.5,4.0525901]
[1747512728090,4.05230547,2467.8,2467.3,4.84021941]
[1747512728814,0.4398,2468.2,2467.3,0.7873]
[1747512729005,17.502,2468.3,2467.6,4.05245101]
[1747512729006,12.02179105,2468.1,2467.6,4.05245101]
[1747512729384,0.03426479,2468.0,2467.4,7.969]
[1747512729717,7.969,2468.1,2467.4,7.969]
[1747512730016,4.05197816,2468.0,2467.5,4.43912229]
[1747512730921,4.0520348,2467.9,2467.5,0.38651533]
[1747512731414,4.0520348,2467.9,2467.6,0.38651533]
[1747512731780,4.05235644,2467.7,2467.6,0.38651533]
[1747512732135,4.05228099,2467.8,2467.6,0.38651533]
[1747512732631,7.969,2467.7,2467.6,0.38651533]
[1747512733334,4.05194837,2468.0,2467.5,4.05260045]
[1747512733534,7.967,2467.9,2467.5,4.05260045]
[1747512733743,4.05230747,2467.8,2467.3,4.84022356]
[1747512733897,12.01904818,2467.9,2467.3,0.7873]
[1747512734097,4.05242368,2467.7,2467.3,0.7873]
[1747512734324,7.967,2467.9,2467.3,0.7873]
[1747512734531,4.05235644,2467.7,2467.3,0.7873]
[1747512734741,0.03426479,2467.6,2467.3,0.7873]
[1747512734920,4.05235644,2467.7,2467.4,0.38681273]
[1747512735230,4.0526849,2467.5,2467.4,0.38681273]
[1747512735408,4.08694969,2467.5,2467.4,0.38681273]
[1747512735606,4.94488162,2467.5,2467.4,0.38681273]
[1747512736012,12.94488162,2467.5,2467.4,0.38681273]
[1747512736224,12.91061683,2467.5,2467.4,0.38681273]
[1747512736620,13.35041683,2467.5,2467.4,0.38681273]
[1747512736824,0.4398,2467.3,2466.5,4.53732231]
[1747512737024,4.05364936,2467.0,2466.6,0.53371223]
[1747512737941,4.05368834,2466.9,2466.6,0.53371223]
[1747512738140,4.05368834,2466.9,2466.7,0.38695694]
[1747512738435,4.05358096,2467.0,2466.7,0.38695694]
[1747512738641,4.05367477,2466.9,2466.7,0.38695694]
[1747512738942,4.05383492,2466.8,2466.7,0.38695694]
[1747512739530,4.49363492,2466.8,2466.7,0.38695694]
[1747512739749,5.34836844,2466.8,2466.7,0.38695694]
[1747512739910,4.05402897,2466.7,2466.2,0.48300386]
[1747512740106,4.05434287,2466.5,2466.2,0.48300386]
[1747512741144,7.961,2466.6,2466.2,0.48300386]
[1747512741456,7.961,2466.6,2466.2,4.537716]
[1747512741754,4.05401891,2466.7,2466.3,1.24616105]
[1747512741927,7.952,2466.6,2466.3,1.24616105]
[1747512742249,7.952,2466.6,2466.3,5.30072008]
[1747512742474,7.951,2466.7,2466.4,0.8256]
[1747512742633,7.951,2466.7,2466.5,4.05430209]
[1747512743448,8.4398,2467.4,2466.8,4.05370788]
[1747512743748,4.05310207,2467.3,2466.6,0.8256]
[1747512743939,12.44567156,2467.4,2466.9,4.05365474]
[1747512744140,12.00587156,2467.4,2466.9,4.05365474]
[1747512744340,4.05310589,2467.3,2466.6,0.8256]
[1747512744515,4.05331388,2467.2,2466.7,0.97739722]
[1747512744716,4.05317769,2467.2,2466.7,0.97739722]
[1747512744924,4.08763602,2467.1,2466.8,0.38682853]
[1747512745129,4.05352181,2467.0,2466.8,0.38682853]
[1747512745539,4.05271034,2467.5,2467.0,4.05340732]
[1747512745540,4.05270706,2467.5,2467.0,4.05340732]
[1747512745745,0.4398,2467.6,2467.0,4.05340732]
[1747512745746,4.49247629,2467.6,2467.0,0.84939064]
[1747512746019,4.0526849,2467.5,2467.0,4.90280172]
[1747512746258,4.49240975,2467.6,2467.1,4.05333261]
[1747512746556,4.05270222,2467.5,2467.1,4.86233261]
[1747512746729,4.49240828,2467.6,2467.1,4.86233261]
[1747512746928,12.03060828,2467.6,2467.1,4.86233261]
[1747512747453,7.969,2468.0,2467.1,1.78553097]
[1747512747654,7.974,2467.6,2467.1,4.86228094]
[1747512747826,7.974,2467.6,2467.2,4.05307389]
[1747512748756,7.974,2467.6,2467.1,0.809]
[1747512748757,4.05286218,2467.4,2467.1,0.809]
[1747512749057,4.08703896,2467.5,2467.1,0.809]
[1747512749559,4.08703737,2467.5,2467.2,0.3868018]
[1747512749920,4.05286293,2467.4,2467.2,0.3868018]
[1747512750121,8.4138,2467.6,2467.2,0.3868018]
[1747512750321,4.05292772,2467.4,2467.2,0.3868018]
[1747512750552,4.08725757,2467.4,2467.2,0.3868018]
[1747512750762,4.05301341,2467.3,2467.2,0.3868018]
[1747512751061,4.05301341,2467.3,2466.8,4.5367454]
[1747512751262,4.05292191,2467.4,2467.0,4.05348854]
[1747512751760,4.05305468,2467.3,2466.9,4.05360369]
[1747512752055,4.05292162,2467.4,2466.9,4.05363919]
[1747512752230,4.05312019,2467.3,2466.8,4.53680757]
[1747512752563,4.05312019,2467.3,2466.8,6.02722856]
[1747512752869,4.05312019,2467.3,2466.9,0.38697594]
[1747512753021,4.05312019,2467.3,2466.9,4.44062493]
[1747512753219,4.05293528,2467.4,2466.9,4.44062493]